[Event "Titled Tuesday Blitz June 8 2021"]
[White "Derakhshani, Borna"]
[Black "Sadykov, Ramil"]
[WhiteFideId "12518450"]
[BlackFideId "24113590"]
[WhiteElo "2035"]
[BlackElo "2300"]
[Result "0-1"]
[Round "07"]
[TimeControl "180+1"]
[Date "2021.06.08"]
[WhiteClock "0:00:19"]
[BlackClock "0:00:04"]

1. d4 {[%clk 0:03:00]}  d5 {[%clk 0:02:59]} 2. Bf4 {[%clk 0:03:01]}  c5 {[%clk 0:02:53]} 3. e3 {[%clk 0:03:01]}  cxd4 {[%clk 0:02:53]} 4. exd4 {[%clk 0:03:02]}  Nf6 {[%clk 0:02:53]} 5. Nf3 {[%clk 0:03:01]}  Bg4 {[%clk 0:02:51]} 6. c3 {[%clk 0:03:01]}  Nc6 {[%clk 0:02:50]} 7. Nbd2 {[%clk 0:02:58]}  e6 {[%clk 0:02:50]} 8. Qa4 {[%clk 0:02:56]}  Bxf3 {[%clk 0:02:42]} 9. Nxf3 {[%clk 0:02:56]}  a6 {[%clk 0:02:35]} 10. Ne5 {[%clk 0:02:53]}  Qb6 {[%clk 0:02:26]} 11. Nxc6 {[%clk 0:02:42]}  Qxc6 {[%clk 0:02:21]} 12. Qxc6+ {[%clk 0:02:34]}  bxc6 {[%clk 0:02:21]} 13. Bd3 {[%clk 0:02:27]}  Kd7 {[%clk 0:02:19]} 14. Kd2 {[%clk 0:02:11]}  Bd6 {[%clk 0:02:19]} 15. Bxd6 {[%clk 0:02:12]}  Kxd6 {[%clk 0:02:20]} 16. b4 {[%clk 0:02:11]}  a5 {[%clk 0:02:14]} 17. a3 {[%clk 0:02:08]}  Rhb8 {[%clk 0:02:04]} 18. Rhb1 {[%clk 0:02:06]}  g6 {[%clk 0:01:59]} 19. a4 {[%clk 0:01:51]}  Nd7 {[%clk 0:01:45]} 20. b5 {[%clk 0:01:48]}  c5 {[%clk 0:01:24]} 21. f4 {[%clk 0:01:33]}  h5 {[%clk 0:01:20]} 22. g3 {[%clk 0:01:20]}  Nb6 {[%clk 0:01:19]} 23. Rf1 {[%clk 0:01:05]}  Rc8 {[%clk 0:01:15]} 24. h3 {[%clk 0:01:02]}  Rc7 {[%clk 0:01:14]} 25. g4 {[%clk 0:01:00]}  hxg4 {[%clk 0:01:15]} 26. hxg4 {[%clk 0:01:01]}  Rh8 {[%clk 0:01:04]} 27. Rf2 {[%clk 0:00:53]}  Rh4 {[%clk 0:00:57]} 28. Rg2 {[%clk 0:00:53]}  Rh3 {[%clk 0:00:50]} 29. f5 {[%clk 0:00:40]}  gxf5 {[%clk 0:00:50]} 30. gxf5 {[%clk 0:00:41]}  cxd4 {[%clk 0:00:43]} 31. cxd4 {[%clk 0:00:42]}  Nc4+ {[%clk 0:00:44]} 32. Bxc4 {[%clk 0:00:40]}  Rxc4 {[%clk 0:00:45]} 33. Rg4 {[%clk 0:00:37]}  Rb4 {[%clk 0:00:34]} 34. fxe6 {[%clk 0:00:25]}  fxe6 {[%clk 0:00:32]} 35. Rf4 {[%clk 0:00:13]}  Rb2+ {[%clk 0:00:31]} 36. Kc1 {[%clk 0:00:14]}  Re2 {[%clk 0:00:25]} 37. Rf1 {[%clk 0:00:09]}  Rc3+ {[%clk 0:00:20]} 38. Kd1 {[%clk 0:00:09]}  Rb2 {[%clk 0:00:21]} 39. Rc1 {[%clk 0:00:08]}  Rd3+ {[%clk 0:00:21]} 40. Ke1 {[%clk 0:00:09]}  Re3+ {[%clk 0:00:21]} 41. Kd1 {[%clk 0:00:10]}  Rd3+ {[%clk 0:00:20]} 42. Ke1 {[%clk 0:00:10]}  Rxd4 {[%clk 0:00:21]} 43. Rf2 {[%clk 0:00:09]}  Re4+ {[%clk 0:00:16]} 44. Kf1 {[%clk 0:00:09]}  Rxf2+ {[%clk 0:00:16]} 45. Kxf2 {[%clk 0:00:10]}  Rxa4 {[%clk 0:00:17]} 46. Rc6+ {[%clk 0:00:11]}  Ke5 {[%clk 0:00:15]} 47. Ra6 {[%clk 0:00:12]}  Ra3 {[%clk 0:00:06]} 48. Ke2 {[%clk 0:00:11]}  a4 {[%clk 0:00:06]} 49. Kd2 {[%clk 0:00:11]}  Rb3 {[%clk 0:00:06]} 50. Kc2 {[%clk 0:00:11]}  Rxb5 {[%clk 0:00:05]} 51. Rxa4 {[%clk 0:00:12]}  Rc5+ {[%clk 0:00:05]} 52. Kd3 {[%clk 0:00:13]}  Rb5 {[%clk 0:00:05]} 53. Rh4 {[%clk 0:00:13]}  Rb3+ {[%clk 0:00:05]} 54. Kc2 {[%clk 0:00:14]}  Rg3 {[%clk 0:00:05]} 55. Rh5+ {[%clk 0:00:15]}  Kd4 {[%clk 0:00:06]} 56. Rh4+ {[%clk 0:00:15]}  Kc5 {[%clk 0:00:05]} 57. Rh5 {[%clk 0:00:15]}  Re3 {[%clk 0:00:05]} 58. Kd2 {[%clk 0:00:16]}  Kd4 {[%clk 0:00:04]} 59. Rh4+ {[%clk 0:00:16]}  Re4 {[%clk 0:00:05]} 60. Rh8 {[%clk 0:00:16]}  Rg4 {[%clk 0:00:05]} 61. Ra8 {[%clk 0:00:14]}  Rg2+ {[%clk 0:00:04]} 62. Ke1 {[%clk 0:00:15]}  e5 {[%clk 0:00:04]} 63. Ra4+ {[%clk 0:00:16]}  Ke3 {[%clk 0:00:04]} 64. Ra3+ {[%clk 0:00:17]}  Ke4 {[%clk 0:00:04]} 65. Kf1 {[%clk 0:00:18]}  Rb2 {[%clk 0:00:03]} 66. Ra4+ {[%clk 0:00:18]}  d4 {[%clk 0:00:04]} 67. Ra3 {[%clk 0:00:19]}  d3 {[%clk 0:00:04]} 68. Ra8 {[%clk 0:00:18]}  Ke3 {[%clk 0:00:04]} 69. Rd8 {[%clk 0:00:19]}  e4 {[%clk 0:00:04]} 70. Rh8 {[%clk 0:00:18]}  Rb1+ {[%clk 0:00:04]} 71. Kg2 {[%clk 0:00:19]}  Kd2 {[%clk 0:00:04]} 72. Rh3 {[%clk 0:00:20]}  e3 {[%clk 0:00:05]} 73. Rh1 {[%clk 0:00:19]}  Rxh1 {[%clk 0:00:04]} 0-1


[Site "https://www.chess.com"]

[Event "Titled Tuesday Blitz June 8 2021"]
[White "Djordjevic, Vuk"]
[Black "Prydun, Andriy"]
[WhiteFideId "902098"]
[BlackFideId "14145898"]
[WhiteElo "2463"]
[BlackElo "2028"]
[Result "1-0"]
[Round "07"]
[TimeControl "180+1"]
[Date "2021.06.08"]
[WhiteClock "0:00:57"]
[BlackClock "0:00:09"]

1. d4 {[%clk 0:03:00]}  d5 {[%clk 0:03:00]} 2. Bf4 {[%clk 0:02:59]}  e6 {[%clk 0:03:00]} 3. e3 {[%clk 0:02:59]}  Nf6 {[%clk 0:02:59]} 4. Nd2 {[%clk 0:02:57]}  Bd6 {[%clk 0:02:59]} 5. Bg3 {[%clk 0:02:58]}  Qe7 {[%clk 0:02:58]} 6. Bd3 {[%clk 0:02:57]}  Nfd7 {[%clk 0:02:57]} 7. Ngf3 {[%clk 0:02:57]}  c5 {[%clk 0:02:57]} 8. c3 {[%clk 0:02:53]}  Nc6 {[%clk 0:02:57]} 9. e4 {[%clk 0:02:52]}  e5 {[%clk 0:02:56]} 10. O-O {[%clk 0:02:48]}  exd4 {[%clk 0:02:49]} 11. exd5 {[%clk 0:02:48]}  Nce5 {[%clk 0:02:43]} 12. Nxe5 {[%clk 0:02:45]}  Nxe5 {[%clk 0:02:30]} 13. Bxe5 {[%clk 0:02:42]}  Bxe5 {[%clk 0:02:26]} 14. f4 {[%clk 0:02:42]}  Bxf4 {[%clk 0:02:02]} 15. Rxf4 {[%clk 0:02:33]}  Qe3+ {[%clk 0:02:02]} 16. Rf2 {[%clk 0:02:33]}  Qxd3 {[%clk 0:02:02]} 17. Qe1+ {[%clk 0:02:18]}  Kf8 {[%clk 0:01:56]} 18. Qe5 {[%clk 0:02:17]}  Qe3 {[%clk 0:01:45]} 19. Qh5 {[%clk 0:01:52]}  g6 {[%clk 0:01:38]} 20. Qh4 {[%clk 0:01:52]}  Qe7 {[%clk 0:01:20]} 21. Qh6+ {[%clk 0:01:43]}  Ke8 {[%clk 0:00:57]} 22. d6 {[%clk 0:01:36]}  Qe3 {[%clk 0:00:54]} 23. Qg7 {[%clk 0:01:32]}  Rf8 {[%clk 0:00:54]} 24. Nf3 {[%clk 0:01:23]}  Be6 {[%clk 0:00:48]} 25. Re1 {[%clk 0:01:20]}  Qf4 {[%clk 0:00:30]} 26. Nxd4 {[%clk 0:01:01]}  Qxd6 {[%clk 0:00:17]} 27. Nxe6 {[%clk 0:01:01]}  Qe7 {[%clk 0:00:09]} 28. Nc7+ {[%clk 0:00:57]} 1-0


[Site "https://www.chess.com"]

[Event "Titled Tuesday Blitz June 8 2021"]
[White "Esipenko, Andrey"]
[Black "Tabatabaei, M. Amin"]
[WhiteFideId "24175439"]
[BlackFideId "12521213"]
[WhiteElo "2595"]
[BlackElo "2555"]
[Result "0-1"]
[Round "07"]
[TimeControl "180+1"]
[Date "2021.06.08"]
[WhiteClock "0:00:01"]
[BlackClock "0:00:24"]

1. e4 {[%clk 0:03:00]}  c5 {[%clk 0:02:58]} 2. Nf3 {[%clk 0:03:00]}  e6 {[%clk 0:02:58]} 3. d4 {[%clk 0:03:00]}  cxd4 {[%clk 0:02:59]} 4. Nxd4 {[%clk 0:03:00]}  Nc6 {[%clk 0:02:59]} 5. Nc3 {[%clk 0:03:01]}  Qc7 {[%clk 0:03:00]} 6. Be3 {[%clk 0:03:00]}  a6 {[%clk 0:03:00]} 7. Qf3 {[%clk 0:02:56]}  Nf6 {[%clk 0:02:57]} 8. O-O-O {[%clk 0:02:52]}  Ne5 {[%clk 0:02:57]} 9. Qg3 {[%clk 0:02:52]}  b5 {[%clk 0:02:58]} 10. f4 {[%clk 0:02:49]}  Neg4 {[%clk 0:02:58]} 11. Bd2 {[%clk 0:02:45]}  b4 {[%clk 0:02:45]} 12. Na4 {[%clk 0:02:40]}  h5 {[%clk 0:02:39]} 13. Bd3 {[%clk 0:02:35]}  Bb7 {[%clk 0:02:38]} 14. h3 {[%clk 0:02:27]}  h4 {[%clk 0:02:16]} 15. Qe1 {[%clk 0:02:26]}  Nh6 {[%clk 0:02:16]} 16. Rf1 {[%clk 0:02:05]}  d5 {[%clk 0:01:55]} 17. e5 {[%clk 0:02:03]}  Ne4 {[%clk 0:01:53]} 18. Bxb4 {[%clk 0:02:04]}  Be7 {[%clk 0:01:44]} 19. Ba5 {[%clk 0:01:34]}  Qb8 {[%clk 0:01:34]} 20. Nb6 {[%clk 0:01:34]}  Ra7 {[%clk 0:01:31]} 21. Bb4 {[%clk 0:01:09]}  Qd8 {[%clk 0:01:21]} 22. Bxe4 {[%clk 0:01:04]}  dxe4 {[%clk 0:01:05]} 23. Nxe6 {[%clk 0:00:42]}  Qxb6 {[%clk 0:01:05]} 24. Nxg7+ {[%clk 0:00:42]}  Kf8 {[%clk 0:01:06]} 25. Bxe7+ {[%clk 0:00:40]}  Kxg7 {[%clk 0:00:51]} 26. Bf6+ {[%clk 0:00:37]}  Kh7 {[%clk 0:00:51]} 27. Bxh8 {[%clk 0:00:36]}  Nf5 {[%clk 0:00:45]} 28. Bf6 {[%clk 0:00:33]}  e3 {[%clk 0:00:46]} 29. Rd8 {[%clk 0:00:28]}  Ra8 {[%clk 0:00:46]} 30. Qd1 {[%clk 0:00:24]}  e2 {[%clk 0:00:27]} 31. Qxe2 {[%clk 0:00:23]}  Rxd8 {[%clk 0:00:27]} 32. Qh5+ {[%clk 0:00:14]}  Nh6 {[%clk 0:00:27]} 33. Bxd8 {[%clk 0:00:12]}  Qxd8 {[%clk 0:00:28]} 34. Rd1 {[%clk 0:00:12]}  Qa5 {[%clk 0:00:28]} 35. a3 {[%clk 0:00:08]}  Qb6 {[%clk 0:00:27]} 36. Kb1 {[%clk 0:00:05]}  Be4 {[%clk 0:00:27]} 37. Rd6 {[%clk 0:00:04]}  Qg1+ {[%clk 0:00:28]} 38. Ka2 {[%clk 0:00:04]}  Bg6 {[%clk 0:00:28]} 39. Qxh4 {[%clk 0:00:03]}  Qxg2 {[%clk 0:00:29]} 40. Rxg6 {[%clk 0:00:01]}  Qxg6 {[%clk 0:00:27]} 41. Qf2 {[%clk 0:00:02]}  Nf5 {[%clk 0:00:25]} 42. b3 {[%clk 0:00:01]}  Qc6 {[%clk 0:00:24]} 43. Kb2 {[%clk 0:00:01]}  Qe4 {[%clk 0:00:24]} 44. Qg1 {[%clk 0:00:01]}  Ne3 {[%clk 0:00:24]} 45. Qf2 {[%clk 0:00:01]}  Qd4+ {[%clk 0:00:24]} 0-1


[Site "https://www.chess.com"]

[Event "Titled Tuesday Blitz June 8 2021"]
[White "Fus, Jakub"]
[Black "Nagy, Gabor"]
[WhiteFideId "1193023"]
[BlackFideId "737119"]
[WhiteElo "2633"]
[BlackElo "2804"]
[Result "1-0"]
[Round "07"]
[TimeControl "180+1"]
[Date "2021.06.08"]
[WhiteClock "0:01:15"]
[BlackClock "0:01:51"]

1. d4 {[%clk 0:03:00]}  Nf6 {[%clk 0:02:57]} 2. c4 {[%clk 0:03:01]}  c5 {[%clk 0:02:58]} 3. d5 {[%clk 0:03:00]}  e6 {[%clk 0:02:58]} 4. Nc3 {[%clk 0:03:00]}  exd5 {[%clk 0:02:59]} 5. cxd5 {[%clk 0:03:01]}  d6 {[%clk 0:02:59]} 6. Nf3 {[%clk 0:03:00]}  g6 {[%clk 0:03:00]} 7. Nd2 {[%clk 0:03:00]}  Bg7 {[%clk 0:03:00]} 8. e4 {[%clk 0:03:01]}  O-O {[%clk 0:03:00]} 9. Be2 {[%clk 0:03:01]}  a6 {[%clk 0:02:59]} 10. a4 {[%clk 0:03:01]}  Nbd7 {[%clk 0:02:57]} 11. O-O {[%clk 0:03:01]}  Re8 {[%clk 0:02:58]} 12. Ra3 {[%clk 0:02:57]}  Rb8 {[%clk 0:02:58]} 13. Re1 {[%clk 0:02:56]}  h6 {[%clk 0:02:55]} 14. Qc2 {[%clk 0:02:55]}  g5 {[%clk 0:02:54]} 15. Nf1 {[%clk 0:02:48]}  Ne5 {[%clk 0:02:54]} 16. a5 {[%clk 0:02:48]}  Bd7 {[%clk 0:02:53]} 17. Ng3 {[%clk 0:02:46]}  Ng6 {[%clk 0:02:54]} 18. Nd1 {[%clk 0:02:42]}  Bb5 {[%clk 0:02:49]} 19. Ne3 {[%clk 0:02:37]}  Nf4 {[%clk 0:02:41]} 20. Bf1 {[%clk 0:02:33]}  Bxf1 {[%clk 0:02:31]} 21. Kxf1 {[%clk 0:02:34]}  Nd7 {[%clk 0:02:28]} 22. Ngf5 {[%clk 0:02:27]}  Ne5 {[%clk 0:02:25]} 23. Nxg7 {[%clk 0:02:20]}  Kxg7 {[%clk 0:02:26]} 24. Nf5+ {[%clk 0:02:20]}  Kh7 {[%clk 0:02:26]} 25. Bxf4 {[%clk 0:02:19]}  gxf4 {[%clk 0:02:26]} 26. Rh3 {[%clk 0:02:19]}  Qg5 {[%clk 0:02:18]} 27. Nxh6 {[%clk 0:02:09]}  Kg7 {[%clk 0:02:14]} 28. Nf5+ {[%clk 0:02:07]}  Kg8 {[%clk 0:02:15]} 29. Nxd6 {[%clk 0:02:04]}  Red8 {[%clk 0:02:09]} 30. Nf5 {[%clk 0:02:03]}  Ng6 {[%clk 0:02:09]} 31. Qe2 {[%clk 0:01:50]}  b6 {[%clk 0:02:06]} 32. Rh5 {[%clk 0:01:25]}  Qf6 {[%clk 0:02:03]} 33. Qg4 {[%clk 0:01:25]}  bxa5 {[%clk 0:02:01]} 34. e5 {[%clk 0:01:23]}  Qb6 {[%clk 0:01:59]} 35. e6 {[%clk 0:01:23]}  Rxd5 {[%clk 0:01:53]} 36. Ne7+ {[%clk 0:01:20]}  Kf8 {[%clk 0:01:52]} 37. Nxd5 {[%clk 0:01:20]}  Qb5+ {[%clk 0:01:52]} 38. Kg1 {[%clk 0:01:20]}  Qe2 {[%clk 0:01:52]} 39. Qxe2 {[%clk 0:01:18]}  fxe6 {[%clk 0:01:52]} 40. Qxe6 {[%clk 0:01:17]}  Rxb2 {[%clk 0:01:52]} 41. Qf6+ {[%clk 0:01:16]}  Kg8 {[%clk 0:01:51]} 42. Re8+ {[%clk 0:01:15]}  Nf8 {[%clk 0:01:51]} 43. Rxf8# {[%clk 0:01:15]} 1-0


[Site "https://www.chess.com"]

[Event "Titled Tuesday Blitz June 8 2021"]
[White "Gavrilescu, David"]
[Black "Bologan, Victor"]
[WhiteFideId "1227190"]
[BlackFideId "13900048"]
[WhiteElo "2370"]
[BlackElo "2511"]
[Result "1-0"]
[Round "07"]
[TimeControl "180+1"]
[Date "2021.06.08"]
[WhiteClock "0:00:57"]
[BlackClock "0:00:08"]

1. e4 {[%clk 0:03:00]}  g6 {[%clk 0:02:58]} 2. d4 {[%clk 0:03:00]}  Bg7 {[%clk 0:02:58]} 3. Nf3 {[%clk 0:03:01]}  d6 {[%clk 0:02:58]} 4. h3 {[%clk 0:02:59]}  Nf6 {[%clk 0:02:55]} 5. Bd3 {[%clk 0:02:59]}  O-O {[%clk 0:02:55]} 6. O-O {[%clk 0:02:55]}  Nc6 {[%clk 0:02:55]} 7. c3 {[%clk 0:02:55]}  e5 {[%clk 0:02:55]} 8. Re1 {[%clk 0:02:55]}  h6 {[%clk 0:02:52]} 9. Na3 {[%clk 0:02:55]}  Nh5 {[%clk 0:02:49]} 10. Nc2 {[%clk 0:02:54]}  Qf6 {[%clk 0:02:48]} 11. a4 {[%clk 0:02:50]}  Nf4 {[%clk 0:02:47]} 12. dxe5 {[%clk 0:02:43]}  Nxe5 {[%clk 0:02:35]} 13. Nxe5 {[%clk 0:02:43]}  dxe5 {[%clk 0:02:33]} 14. Bxf4 {[%clk 0:02:34]}  Qxf4 {[%clk 0:02:31]} 15. Bc4 {[%clk 0:02:35]}  Qg5 {[%clk 0:02:28]} 16. Qf3 {[%clk 0:02:28]}  a5 {[%clk 0:02:16]} 17. Rad1 {[%clk 0:02:26]}  c6 {[%clk 0:02:14]} 18. Kh2 {[%clk 0:02:17]}  h5 {[%clk 0:02:11]} 19. Rd6 {[%clk 0:01:47]}  Bh6 {[%clk 0:01:50]} 20. Red1 {[%clk 0:01:41]}  Qf4+ {[%clk 0:01:44]} 21. Qxf4 {[%clk 0:01:38]}  Bxf4+ {[%clk 0:01:43]} 22. g3 {[%clk 0:01:38]}  Bh6 {[%clk 0:01:41]} 23. Rxg6+ {[%clk 0:01:38]}  Kh7 {[%clk 0:01:41]} 24. Rgd6 {[%clk 0:01:36]}  Bg5 {[%clk 0:01:38]} 25. Ne3 {[%clk 0:01:28]}  Be7 {[%clk 0:01:33]} 26. R6d2 {[%clk 0:01:27]}  Rb8 {[%clk 0:01:24]} 27. f4 {[%clk 0:01:22]}  h4 {[%clk 0:01:09]} 28. fxe5 {[%clk 0:01:17]}  Bg5 {[%clk 0:01:06]} 29. Re2 {[%clk 0:01:17]}  b5 {[%clk 0:00:59]} 30. axb5 {[%clk 0:01:14]}  cxb5 {[%clk 0:00:57]} 31. Bd5 {[%clk 0:01:14]}  b4 {[%clk 0:00:53]} 32. c4 {[%clk 0:01:12]}  a4 {[%clk 0:00:52]} 33. Ra1 {[%clk 0:01:08]}  Bd7 {[%clk 0:00:47]} 34. Nf5 {[%clk 0:01:08]}  hxg3+ {[%clk 0:00:44]} 35. Kxg3 {[%clk 0:01:09]}  Rfe8 {[%clk 0:00:39]} 36. h4 {[%clk 0:01:08]}  Bd8 {[%clk 0:00:35]} 37. Kf4 {[%clk 0:01:07]}  Bc7 {[%clk 0:00:34]} 38. Nd6 {[%clk 0:01:06]}  Re7 {[%clk 0:00:33]} 39. c5 {[%clk 0:01:04]}  Rg8 {[%clk 0:00:23]} 40. c6 {[%clk 0:00:58]}  Rg4+ {[%clk 0:00:10]} 41. Kf3 {[%clk 0:00:58]}  Rxh4 {[%clk 0:00:08]} 42. cxd7 {[%clk 0:00:57]} 1-0


[Site "https://www.chess.com"]

[Event "Titled Tuesday Blitz June 8 2021"]
[White "Goltsev, Dmitry"]
[Black "Cruz, Jonathan"]
[WhiteFideId "24176710"]
[BlackFideId "3802124"]
[WhiteElo "2877"]
[BlackElo "2641"]
[Result "1-0"]
[Round "07"]
[TimeControl "180+1"]
[Date "2021.06.08"]
[WhiteClock "0:01:07"]
[BlackClock "0:00:04"]

1. e4 {[%clk 0:02:59]}  c6 {[%clk 0:01:53]} 2. d4 {[%clk 0:02:57]}  d5 {[%clk 0:01:54]} 3. f3 {[%clk 0:02:58]}  e5 {[%clk 0:01:54]} 4. dxe5 {[%clk 0:02:48]}  Bc5 {[%clk 0:01:54]} 5. exd5 {[%clk 0:02:44]}  cxd5 {[%clk 0:01:54]} 6. Nc3 {[%clk 0:02:43]}  Ne7 {[%clk 0:01:54]} 7. Bb5+ {[%clk 0:02:42]}  Nbc6 {[%clk 0:01:54]} 8. Bg5 {[%clk 0:02:41]}  a6 {[%clk 0:01:54]} 9. Ba4 {[%clk 0:02:39]}  b5 {[%clk 0:01:52]} 10. Bb3 {[%clk 0:02:39]}  Be6 {[%clk 0:01:53]} 11. Nge2 {[%clk 0:02:37]}  Qb6 {[%clk 0:01:53]} 12. Qd2 {[%clk 0:02:16]}  O-O {[%clk 0:01:40]} 13. O-O-O {[%clk 0:02:11]}  h6 {[%clk 0:01:35]} 14. Bf4 {[%clk 0:02:11]}  g5 {[%clk 0:01:32]} 15. Bxg5 {[%clk 0:02:10]}  hxg5 {[%clk 0:01:32]} 16. Qxg5+ {[%clk 0:02:11]}  Ng6 {[%clk 0:01:33]} 17. Kb1 {[%clk 0:02:10]}  Qd8 {[%clk 0:00:49]} 18. Qh6 {[%clk 0:02:05]}  Qh4 {[%clk 0:00:49]} 19. Qxh4 {[%clk 0:01:56]}  Nxh4 {[%clk 0:00:49]} 20. Nxd5 {[%clk 0:01:57]}  Rad8 {[%clk 0:00:30]} 21. f4 {[%clk 0:01:50]}  Kg7 {[%clk 0:00:19]} 22. g3 {[%clk 0:01:39]}  Nf5 {[%clk 0:00:20]} 23. g4 {[%clk 0:01:34]}  Nfd4 {[%clk 0:00:19]} 24. Nxd4 {[%clk 0:01:31]}  Nxd4 {[%clk 0:00:19]} 25. Nf6 {[%clk 0:01:31]}  Nxb3 {[%clk 0:00:13]} 26. axb3 {[%clk 0:01:31]}  Be7 {[%clk 0:00:09]} 27. Ne4 {[%clk 0:01:27]}  Bd5 {[%clk 0:00:06]} 28. Rde1 {[%clk 0:01:24]}  Bxe4 {[%clk 0:00:04]} 29. Rxe4 {[%clk 0:01:25]}  Rh8 {[%clk 0:00:04]} 30. f5 {[%clk 0:01:19]}  Bg5 {[%clk 0:00:04]} 31. e6 {[%clk 0:01:14]}  Rde8 {[%clk 0:00:04]} 32. c4 {[%clk 0:01:12]}  Re7 {[%clk 0:00:03]} 33. c5 {[%clk 0:01:10]}  Kf6 {[%clk 0:00:04]} 34. Rhe1 {[%clk 0:01:07]} 1-0


[Site "https://www.chess.com"]

[Event "Titled Tuesday Blitz June 8 2021"]
[White "Gumularz, Szymon"]
[Black "Vetokhin, Savva"]
[WhiteFideId "1188062"]
[BlackFideId "44144474"]
[WhiteElo "2384"]
[BlackElo "2185"]
[Result "0-1"]
[Round "07"]
[TimeControl "180+1"]
[Date "2021.06.08"]
[WhiteClock "0:02:03"]
[BlackClock "0:01:51"]

1. d4 {[%clk 0:03:00]}  Nf6 {[%clk 0:02:58]} 2. c4 {[%clk 0:03:01]}  e6 {[%clk 0:02:56]} 3. Nf3 {[%clk 0:02:59]}  d5 {[%clk 0:02:54]} 4. g3 {[%clk 0:02:59]}  dxc4 {[%clk 0:02:51]} 5. Bg2 {[%clk 0:02:59]}  Nc6 {[%clk 0:02:50]} 6. O-O {[%clk 0:02:58]}  Rb8 {[%clk 0:02:47]} 7. e3 {[%clk 0:02:55]}  b5 {[%clk 0:02:44]} 8. Qe2 {[%clk 0:02:54]}  Be7 {[%clk 0:02:42]} 9. Rd1 {[%clk 0:02:53]}  O-O {[%clk 0:02:40]} 10. e4 {[%clk 0:02:53]}  Ba6 {[%clk 0:02:29]} 11. a3 {[%clk 0:02:52]}  Na5 {[%clk 0:02:26]} 12. Bf4 {[%clk 0:02:40]}  Nb3 {[%clk 0:02:23]} 13. Ra2 {[%clk 0:02:40]}  Bb7 {[%clk 0:02:20]} 14. Nc3 {[%clk 0:02:39]}  a6 {[%clk 0:02:18]} 15. h4 {[%clk 0:02:32]}  Re8 {[%clk 0:02:14]} 16. Ne5 {[%clk 0:02:27]}  Nxd4 {[%clk 0:02:05]} 17. Qf1 {[%clk 0:02:26]}  c5 {[%clk 0:02:05]} 18. a4 {[%clk 0:02:20]}  Qb6 {[%clk 0:02:03]} 19. g4 {[%clk 0:02:15]}  Rbd8 {[%clk 0:02:00]} 20. g5 {[%clk 0:02:13]}  Nh5 {[%clk 0:01:57]} 21. Be3 {[%clk 0:02:12]}  f6 {[%clk 0:01:53]} 22. gxf6 {[%clk 0:02:10]}  Bxf6 {[%clk 0:01:54]} 23. Ng4 {[%clk 0:02:07]}  Bxh4 {[%clk 0:01:52]} 24. axb5 {[%clk 0:02:03]}  axb5 {[%clk 0:01:51]} 0-1


[Site "https://www.chess.com"]

[Event "Titled Tuesday Blitz June 8 2021"]
[White "Gusarov, Grigory"]
[Black "Terletsky, Oleg"]
[WhiteFideId "24102172"]
[BlackFideId "14116774"]
[WhiteElo "2241"]
[BlackElo "2094"]
[Result "1-0"]
[Round "07"]
[TimeControl "180+1"]
[Date "2021.06.08"]
[WhiteClock "0:01:05"]
[BlackClock "0:00:06"]

1. d4 {[%clk 0:03:00]}  Nf6 {[%clk 0:02:59]} 2. Nf3 {[%clk 0:03:01]}  g6 {[%clk 0:03:00]} 3. c3 {[%clk 0:03:01]}  Bg7 {[%clk 0:03:00]} 4. Bg5 {[%clk 0:03:01]}  O-O {[%clk 0:02:59]} 5. Nbd2 {[%clk 0:03:02]}  d5 {[%clk 0:02:59]} 6. e3 {[%clk 0:03:02]}  c5 {[%clk 0:02:59]} 7. dxc5 {[%clk 0:03:02]}  Nbd7 {[%clk 0:02:46]} 8. Bxf6 {[%clk 0:02:56]}  Bxf6 {[%clk 0:02:42]} 9. Nb3 {[%clk 0:02:55]}  a5 {[%clk 0:02:29]} 10. Qxd5 {[%clk 0:02:54]}  a4 {[%clk 0:02:29]} 11. Nbd4 {[%clk 0:02:54]}  e6 {[%clk 0:02:05]} 12. Qc4 {[%clk 0:02:48]}  Qc7 {[%clk 0:01:54]} 13. c6 {[%clk 0:02:48]}  bxc6 {[%clk 0:01:45]} 14. Qxc6 {[%clk 0:02:42]}  Qxc6 {[%clk 0:01:41]} 15. Nxc6 {[%clk 0:02:42]}  a3 {[%clk 0:01:42]} 16. O-O-O {[%clk 0:02:33]}  axb2+ {[%clk 0:01:30]} 17. Kxb2 {[%clk 0:02:33]}  Nc5 {[%clk 0:01:31]} 18. Nfd4 {[%clk 0:02:29]}  Bd7 {[%clk 0:01:26]} 19. Bb5 {[%clk 0:02:14]}  Rfc8 {[%clk 0:01:13]} 20. f4 {[%clk 0:01:45]}  Bxc6 {[%clk 0:00:39]} 21. Nxc6 {[%clk 0:01:40]}  Na4+ {[%clk 0:00:35]} 22. Bxa4 {[%clk 0:01:40]}  Rxa4 {[%clk 0:00:36]} 23. Nd4 {[%clk 0:01:40]}  Rb8+ {[%clk 0:00:26]} 24. Nb3 {[%clk 0:01:39]}  Rc8 {[%clk 0:00:21]} 25. Rd3 {[%clk 0:01:38]}  Rca8 {[%clk 0:00:19]} 26. Ra1 {[%clk 0:01:37]}  h5 {[%clk 0:00:17]} 27. g3 {[%clk 0:01:36]}  Kg7 {[%clk 0:00:17]} 28. Nd4 {[%clk 0:01:30]}  Rb8+ {[%clk 0:00:16]} 29. Kc2 {[%clk 0:01:29]}  Ra3 {[%clk 0:00:16]} 30. e4 {[%clk 0:01:25]}  Be7 {[%clk 0:00:14]} 31. Nc6 {[%clk 0:01:24]}  Rb7 {[%clk 0:00:13]} 32. Nxe7 {[%clk 0:01:22]}  Rxe7 {[%clk 0:00:14]} 33. Kb2 {[%clk 0:01:22]}  Ra4 {[%clk 0:00:13]} 34. Rd4 {[%clk 0:01:21]}  Rb7+ {[%clk 0:00:13]} 35. Kc2 {[%clk 0:01:21]}  Ra3 {[%clk 0:00:12]} 36. Rb4 {[%clk 0:01:20]}  Rc7 {[%clk 0:00:12]} 37. Rb3 {[%clk 0:01:19]}  Ra4 {[%clk 0:00:12]} 38. e5 {[%clk 0:01:19]}  Re4 {[%clk 0:00:12]} 39. Rd1 {[%clk 0:01:18]}  Ra7 {[%clk 0:00:09]} 40. a3 {[%clk 0:01:16]}  h4 {[%clk 0:00:07]} 41. Rd2 {[%clk 0:01:10]}  hxg3 {[%clk 0:00:06]} 42. hxg3 {[%clk 0:01:11]}  Rc7 {[%clk 0:00:07]} 43. Rb4 {[%clk 0:01:07]}  Re3 {[%clk 0:00:06]} 44. Rd3 {[%clk 0:01:07]}  Re2+ {[%clk 0:00:07]} 45. Kb3 {[%clk 0:01:08]}  Re1 {[%clk 0:00:06]} 46. a4 {[%clk 0:01:07]}  Rb1+ {[%clk 0:00:06]} 47. Ka2 {[%clk 0:01:06]}  Rxc3 {[%clk 0:00:04]} 48. Rxc3 {[%clk 0:01:04]}  Rxb4 {[%clk 0:00:04]} 49. Ra3 {[%clk 0:01:05]}  Rb6 {[%clk 0:00:04]} 50. a5 {[%clk 0:01:05]}  Ra6 {[%clk 0:00:05]} 51. Kb3 {[%clk 0:01:06]}  g5 {[%clk 0:00:06]} 52. Kb4 {[%clk 0:01:06]}  gxf4 {[%clk 0:00:06]} 53. gxf4 {[%clk 0:01:07]}  Kg6 {[%clk 0:00:06]} 54. Kb5 {[%clk 0:01:07]}  Ra8 {[%clk 0:00:06]} 55. Kb6 {[%clk 0:01:07]}  Kf5 {[%clk 0:00:07]} 56. Ra4 {[%clk 0:01:08]}  Rb8+ {[%clk 0:00:07]} 57. Kc7 {[%clk 0:01:08]}  Ra8 {[%clk 0:00:06]} 58. a6 {[%clk 0:01:05]} 1-0


[Site "https://www.chess.com"]